bitfinex/quotes_ETHUSD_20241101
["timestamp","ask_amount","ask_price","bid_price","bid_amount"]
[1730474622345,3.92781,2546.0,2545.8,0.40673358]
[1730474623097,3.92765,2546.1,2545.8,0.40673358]
[1730474623497,3.92773,2546.0,2545.8,0.40673358]
[1730474624205,3.92748,2546.2,2545.8,0.40673358]
[1730474624440,0.8237,2546.5,2545.8,0.40673358]
[1730474624600,3.92727,2546.3,2545.9,0.0785434]
[1730474624805,3.92712,2546.4,2545.9,0.0785434]
[1730474625208,4.72643,2546.8,2545.9,4.0064134]
[1730474625424,4.72643,2546.8,2546.1,3.92757]
[1730474625636,0.7998,2546.8,2546.1,3.92747]
[1730474625804,0.7998,2546.8,2546.0,3.48466463]
[1730474626003,0.7998,2546.8,2545.9,0.1227676]
[1730474626004,3.9272,2546.4,2545.9,3.1227676]
[1730474626313,0.7655,2547.0,2545.8,0.52950118]
[1730474626635,4.69298,2546.2,2545.8,0.40673358]
[1730474627417,0.7655,2546.2,2545.8,0.40673358]
[1730474628447,4.69294,2546.2,2545.8,0.40673358]
[1730474628597,0.7655,2546.2,2545.8,0.40673358]
[1730474628905,3.92765,2546.1,2545.8,0.40673358]
[1730474629534,4.69302,2546.2,2545.8,0.40673358]
[1730474629713,3.9277,2546.1,2545.8,0.40673358]
[1730474629905,0.7655,2546.2,2545.8,0.40673358]
[1730474630128,4.69298,2546.2,2545.8,0.40673358]
[1730474631630,0.7655,2546.2,2545.8,0.40673358]
[1730474631840,3.92689,2546.6,2545.9,0.07854553]
[1730474632049,3.92689,2546.6,2546.0,3.92761]
[1730474632340,3.92689,2546.6,2545.8,0.40673358]
[1730474632341,3.92666,2546.7,2546.1,3.92756]
[1730474632650,3.92665,2546.7,2545.7,0.12279477]
[1730474632845,3.92736,2546.3,2545.9,0.40667099]
[1730474633145,3.92745,2546.2,2545.9,0.40667099]
[1730474634441,3.92758,2546.1,2545.9,0.40667099]
[1730474634736,4.69414,2546.2,2545.9,0.40667099]
[1730474634940,0.7666,2546.2,2545.9,0.40667099]
[1730474635104,4.6941,2546.2,2545.9,0.40667099]
[1730474636240,3.92757,2546.1,2545.9,0.40667099]
[1730474637144,3.92757,2546.1,2545.5,0.1227941]
[1730474637145,3.0,2546.0,2545.5,0.1227941]
[1730474637353,3.92828,2545.7,2545.0,7.9810941]
[1730474637514,3.9281,2545.8,2545.3,0.40672702]
[1730474637841,3.9281,2545.8,2545.3,0.84030972]
[1730474638020,3.92819,2545.7,2545.3,0.84030972]
[1730474638806,3.92865,2545.4,2545.3,0.40672702]
[1730474639011,3.92865,2545.4,2544.9,0.12281078]
[1730474639212,3.92865,2545.4,2545.1,0.40667499]
[1730474639746,3.92881,2545.3,2544.9,0.12281078]
[1730474639945,3.92865,2545.4,2545.0,0.40675935]
[1730474640508,3.92867,2545.4,2545.0,0.40675935]
[1730474641108,0.7534,2545.8,2545.0,0.40675935]
[1730474641345,4.68156,2545.8,2545.0,4.33602935]
[1730474641652,0.7534,2545.8,2545.0,0.52958194]
[1730474641817,3.92877,2545.4,2545.0,0.90381531]
[1730474642141,3.92877,2545.4,2545.0,0.40675935]
[1730474642408,0.7534,2545.8,2545.1,0.07857175]
[1730474642539,4.68151,2545.8,2545.2,3.92895]
[1730474643050,3.92781,2546.0,2545.3,0.07856191]
[1730474643262,0.7954,2546.1,2545.2,3.92883]
[1730474643263,0.7954,2546.1,2545.2,0.55]
[1730474643472,3.92733,2546.3,2545.6,3.92823]
[1730474643655,0.7954,2546.4,2545.8,3.92796]
[1730474643849,4.72265,2546.4,2545.9,0.07854473]
[1730474644065,0.7954,2546.4,2545.4,6.92858]
[1730474644374,3.92727,2546.3,2545.7,3.92812]
[1730474644563,3.92727,2546.3,2545.8,0.392812]
[1730474644940,4.72253,2546.4,2545.8,4.320742]
[1730474645178,8.64979,2546.4,2545.8,0.392812]
[1730474645390,4.72253,2546.4,2545.8,0.392812]
[1730474645681,4.72253,2546.4,2545.8,4.320812]
[1730474645975,3.92729,2546.3,2545.9,0.4320812]
[1730474647278,4.72253,2546.4,2545.9,0.4320812]
[1730474647486,4.71967,2546.8,2546.2,3.9274]
[1730474647640,0.7931,2546.8,2546.3,0.07853311]
[1730474647842,4.71961,2546.8,2546.1,3.92742]
[1730474648079,4.71961,2546.8,2546.2,3.92739]
[1730474648386,4.71961,2546.8,2546.2,4.69760684]
[1730474649380,3.92629,2547.0,2546.3,3.92723]
[1730474649688,4.71922,2547.1,2546.5,3.92692]
[1730474649894,3.9263,2547.0,2546.3,3.92716]
[1730474650078,3.92657,2546.8,2546.2,3.92733]
[1730474650796,3.92618,2547.0,2546.3,3.92725]
[1730474650797,3.92637,2546.9,2546.3,3.92725]
[1730474651191,3.92634,2546.9,2546.3,3.92725]
[1730474651396,3.92618,2547.0,2546.4,4.33210114]
[1730474651571,0.7931,2547.1,2546.5,3.92682]
[1730474651757,0.7931,2547.1,2546.5,7.85369]
[1730474651957,0.7931,2547.1,2546.4,4.33208114]
[1730474651958,4.7192,2547.1,2546.4,4.33208114]
[1730474652186,3.92627,2547.0,2546.4,4.33208114]
[1730474652387,3.92627,2547.0,2546.5,0.7972969]
[1730474652561,0.7931,2547.1,2546.5,4.7242269]
[1730474652767,4.71915,2547.1,2546.5,4.7242269]
[1730474653496,3.92589,2547.2,2546.6,3.92677]
[1730474653661,3.92589,2547.2,2546.7,0.40500114]
[1730474653860,3.92583,2547.3,2546.7,4.33161114]
[1730474654197,3.926,2547.2,2546.7,0.40500114]
[1730474654403,3.926,2547.2,2546.8,0.07851779]
[1730474654697,3.92579,2547.3,2546.7,3.92652]
[1730474655204,3.92572,2547.3,2546.5,0.12275052]
[1730474655386,3.92667,2546.7,2545.8,0.81769736]
[1730474655704,0.8081,2546.2,2545.5,0.40678531]
[1730474655860,3.9282,2545.7,2545.5,0.65188818]
[1730474656065,3.92834,2545.6,2545.5,0.40678531]
[1730474656259,3.92789,2545.9,2545.5,0.40678531]
[1730474656554,3.92823,2545.7,2545.5,0.40677956]
[1730474656786,3.92827,2545.7,2545.5,0.40677956]
[1730474657056,3.92803,2545.8,2545.2,3.92887]
[1730474657371,3.92803,2545.8,2545.4,0.40679231]
[1730474657572,3.92837,2545.6,2545.4,0.40679231]
[1730474657755,4.74009,2545.6,2544.6,3.81769736]
[1730474658099,3.9281,2545.8,2545.2,3.92888]
[1730474658315,3.9281,2545.8,2545.3,0.07856325]
[1730474658459,3.9281,2545.8,2545.3,0.47930757]
[1730474658854,3.92832,2545.7,2545.3,0.40074432]
[1730474659157,3.92836,2545.6,2545.1,0.40678963]
[1730474659792,3.92863,2545.5,2545.1,0.40678963]
[1730474660195,3.92852,2545.5,2545.1,0.40678963]
[1730474660580,3.92828,2545.7,2545.1,0.40678963]
[1730474660777,0.8117,2546.0,2545.1,0.40678963]
[1730474660778,3.92849,2545.6,2545.1,0.40678963]
[1730474661086,3.92851,2545.5,2545.1,0.40678963]
[1730474661999,3.92837,2545.6,2545.2,0.07857005]
[1730474662167,3.92812,2545.8,2545.2,4.00752005]
[1730474662168,3.9282,2545.7,2545.2,4.00752005]
[1730474662378,0.8117,2546.0,2545.2,4.00752005]
[1730474662379,4.73953,2546.0,2545.3,3.92874]
[1730474662579,4.73953,2546.0,2545.4,3.92858]
[1730474662798,0.44383758,2546.8,2545.1,0.40678963]
[1730474662977,3.92865,2545.4,2545.1,0.40678963]
[1730474663183,3.92873,2545.4,2545.1,0.40678963]
[1730474663519,7.85749,2545.4,2545.1,0.40678963]
[1730474663807,3.92865,2545.4,2544.6,3.92974]
[1730474663966,3.92865,2545.4,2544.9,0.40685443]
[1730474664168,3.92882,2545.3,2544.9,0.40685443]
[1730474665068,3.92898,2545.2,2544.9,0.40685443]
[1730474665273,3.92866,2545.4,2544.9,0.40685443]
[1730474665575,3.92884,2545.3,2544.9,0.40685443]
[1730474665775,3.92884,2545.3,2544.9,0.87980827]
[1730474665971,3.92866,2545.4,2544.9,0.87980827]
[1730474666210,4.68671,2545.8,2545.2,3.92889]
[1730474666511,3.92782,2546.0,2545.3,0.07856462]
[1730474666704,3.92782,2546.0,2545.3,0.40073946]
[1730474667005,0.7586,2546.1,2545.3,0.40073946]
[1730474667006,0.7586,2546.1,2545.5,3.92849]
[1730474667180,0.7586,2546.4,2545.3,0.40073946]
[1730474667384,3.92804,2545.8,2545.3,0.40073946]
[1730474667694,0.7586,2546.4,2545.4,4.66161795]
[1730474667897,3.9275,2546.2,2545.5,3.92837]
[1730474668096,3.9275,2546.2,2545.5,3.92842]
[1730474668277,3.92757,2546.1,2545.6,0.07855202]
[1730474668660,3.92749,2546.2,2545.6,0.07855202]
[1730474668839,3.92727,2546.3,2545.6,0.46933009]
[1730474669106,3.92706,2546.5,2545.9,3.92778]
[1730474669280,7.85416,2546.5,2545.9,3.92778]
[1730474669489,3.92726,2546.3,2545.7,7.85613]
[1730474670082,3.92706,2546.5,2545.9,3.92787]
[1730474670083,3.92713,2546.4,2545.9,3.92787]
[1730474670283,7.85414,2546.5,2546.0,0.0785462]
[1730474670504,3.92736,2546.3,2545.8,3.92802]
[1730474670704,3.92711,2546.4,2546.0,0.40063462]
[1730474671018,3.92657,2546.8,2546.1,0.07854621]
[1730474671220,3.92636,2546.9,2546.3,3.92718]
[1730474671375,3.92673,2546.7,2546.2,3.92741]
[1730474671577,3.92673,2546.7,2546.3,0.392741]
[1730474673024,7.85283,2546.9,2546.3,4.319931]
[1730474673195,3.92656,2546.8,2546.4,0.07853251]
[1730474673396,3.92656,2546.8,2546.3,0.392741]
[1730474673924,0.7724,2547.0,2545.7,0.81769736]
[1730474674129,6.92558,2547.4,2545.5,3.9285]
[1730474674130,3.92743,2546.2,2545.5,3.9285]
[1730474674299,3.92766,2546.1,2545.5,3.9284]
[1730474674615,3.92757,2546.1,2545.5,3.9284]
[1730474675160,3.92773,2546.0,2545.6,0.39284]
[1730474675419,3.92758,2546.1,2545.6,4.32114]
[1730474675802,0.7724,2546.4,2545.6,0.39284]
[1730474675985,0.7724,2546.4,2545.2,0.40674767]
[1730474675986,0.7974,2545.9,2545.3,3.92865]
[1730474676189,7.85572,2546.0,2545.4,4.00719214]
[1730474676483,3.92798,2545.9,2545.4,0.07856214]
[1730474676689,3.92798,2545.9,2545.4,4.00720214]
[1730474676897,3.92798,2545.9,2545.5,0.79359921]
[1730474677590,3.92804,2545.8,2545.5,0.79359921]
[1730474677791,3.92828,2545.7,2545.2,0.40674767]
[1730474678017,3.92836,2545.6,2545.2,0.40674767]
[1730474678322,3.92757,2546.1,2545.2,4.33556767]
[1730474678487,3.92807,2545.8,2545.2,4.33556767]
[1730474678826,3.92823,2545.7,2545.2,0.40674767]
[1730474679019,3.92805,2545.8,2545.3,4.00735575]
[1730474679337,3.92805,2545.8,2545.3,3.92879]
[1730474679688,3.92765,2546.1,2545.4,4.00719572]
[1730474679892,3.92765,2546.1,2545.5,3.92849]
[1730474680105,0.7974,2546.2,2545.5,3.92849]
[1730474680106,0.7974,2546.2,2545.5,3.92841]
[1730474680338,3.92757,2546.1,2545.6,3.92833]
[1730474680714,0.7974,2546.2,2545.7,3.92817]
[1730474681028,3.92717,2546.4,2545.9,3.92783]
[1730474681330,7.85375,2546.6,2546.0,3.92765]
[1730474681514,3.92711,2546.4,2545.9,3.9278]
[1730474681716,3.92689,2546.6,2545.9,3.9278]
[1730474682032,3.92665,2546.7,2546.2,3.92733]
[1730474682217,3.92665,2546.7,2546.1,3.92757]
[1730474682422,3.92647,2546.9,2546.4,3.92708]
[1730474682737,3.92604,2547.1,2546.6,3.92672]
[1730474682903,3.92604,2547.1,2546.7,0.07852311]
[1730474683090,3.9258,2547.3,2546.7,3.92665]
[1730474683289,4.72136,2547.4,2546.8,3.92643]
[1730474683496,7.85075,2547.6,2546.9,3.92625]
[1730474683719,0.1233109,2548.0,2547.0,0.47113675]
[1730474683902,4.0479709,2548.0,2547.4,3.92544]
[1730474684124,4.0479709,2548.0,2547.5,4.00390731]
[1730474684834,0.1233109,2548.0,2547.6,3.92519]
[1730474685140,0.1233109,2548.0,2547.9,3.9248]
[1730474685319,0.1233109,2548.0,2547.9,4.7176229]
[1730474686137,0.1233109,2548.0,2547.6,3.92515]
[1730474687018,4.0479609,2548.0,2547.5,3.0]
[1730474687329,0.1233109,2548.0,2547.4,3.92545]
[1730474687581,0.1233109,2548.0,2547.6,3.92524]
[1730474687737,0.1233109,2548.0,2547.6,3.92518]
[1730474687940,0.1233109,2548.0,2547.7,0.392518]
[1730474688686,0.1233109,2548.0,2547.8,3.9249]
[1730474689079,0.1233109,2548.0,2547.7,3.92505]
[1730474689440,0.1233109,2548.0,2547.8,3.92494]
[1730474690344,0.1233109,2548.0,2547.9,3.9248]
[1730474691142,0.1233109,2548.0,2547.5,6.92539]
[1730474691342,0.1233109,2548.0,2547.6,0.692539]
[1730474691579,4.0479709,2548.0,2547.6,0.692539]
[1730474692459,0.1233109,2548.0,2547.6,0.692539]
[1730474692664,0.1233109,2548.0,2547.8,3.92486]
[1730474692875,0.1233109,2548.0,2547.9,4.00328237]
[1730474693194,0.1233109,2548.0,2547.9,4.51304141]
[1730474693482,0.1233109,2548.0,2547.9,7.43455904]
[1730474695626,3.92496,2547.8,2547.1,3.92603]
[1730474695749,3.92481,2547.9,2547.3,3.92571]
[1730474695948,4.0479709,2548.0,2547.5,3.92534]
[1730474696149,4.0479709,2548.0,2547.5,4.710437]
[1730474696382,3.92481,2547.9,2547.5,0.785097]
[1730474696684,0.1233109,2548.0,2547.6,4.00362434]
[1730474696869,0.1233109,2548.0,2547.6,3.92513]
[1730474697079,0.1233109,2548.0,2547.5,0.785097]
[1730474697280,0.7692,2547.8,2547.1,3.92601]
[1730474697588,3.92535,2547.6,2547.1,3.92601]
[1730474697956,3.92562,2547.4,2546.8,0.40640504]
[1730474698287,3.92584,2547.3,2546.8,0.40640504]
[1730474698489,3.92584,2547.3,2546.9,0.07851303]
[1730474698673,3.92542,2547.5,2546.9,4.44583984]
[1730474698874,3.92512,2547.7,2547.2,3.92586]
[1730474699192,4.69426,2547.8,2547.3,3.92565]
[1730474699376,3.92487,2547.9,2547.3,3.92557]
[1730474699590,4.0480609,2548.0,2547.4,3.92547]
[1730474699591,7.9727909,2548.0,2547.4,3.92547]
[1730474699886,3.92481,2547.9,2547.4,4.318027]
[1730474700063,4.0480409,2548.0,2547.4,0.392557]
[1730474700269,3.92504,2547.8,2547.4,0.392557]
[1730474701386,3.92556,2547.5,2546.9,7.85248]
[1730474701586,3.92579,2547.3,2546.8,7.33288504]
[1730474701789,0.1233109,2548.0,2546.8,0.40640504]
[1730474701790,0.7861,2547.5,2546.8,0.40640504]
[1730474701950,3.92592,2547.2,2546.8,0.83969954]
[1730474702263,3.92592,2547.2,2546.8,0.40640504]
[1730474702464,3.92605,2547.1,2546.8,0.40640504]
[1730474702671,4.71153,2547.5,2546.8,0.40640504]
[1730474702856,0.7861,2547.0,2546.8,0.40640504]
[1730474703061,6.92634,2546.9,2546.8,0.40640504]
[1730474703298,3.92669,2546.7,2546.0,3.92761]
[1730474703459,4.163865,2546.9,2546.4,3.92699]
[1730474703460,3.92639,2546.9,2546.4,3.92699]
[1730474703657,0.7861,2547.0,2546.4,3.92699]
[1730474703658,3.92618,2547.0,2546.5,0.07852726]
[1730474703859,3.92618,2547.0,2546.5,4.00544726]
[1730474704057,0.8278,2547.3,2546.5,0.07852726]
[1730474704368,3.92681,2546.6,2545.8,0.40654957]
[1730474704555,3.92681,2546.6,2545.9,3.92788]
[1730474704752,3.92681,2546.6,2546.1,3.92755]
[1730474704995,3.92681,2546.6,2546.0,0.43344296]
[1730474705161,3.92752,2546.2,2546.0,0.43344296]
[1730474705357,3.92758,2546.1,2545.8,0.40654957]
[1730474705659,3.92788,2545.9,2545.8,0.40654957]
[1730474705963,4.73006,2546.0,2545.1,3.92911]
[1730474706170,3.92818,2545.8,2545.1,3.92902]
[1730474706378,3.92818,2545.8,2545.3,3.9288]
[1730474706567,3.92818,2545.8,2545.4,0.51994491]
[1730474706776,3.92818,2545.8,2545.4,0.44138226]
[1730474706979,3.92795,2545.9,2545.4,0.51994493]
[1730474707409,3.92812,2545.8,2545.4,0.44138226]
[1730474707560,0.8023,2546.0,2545.4,0.44138226]
[1730474707561,4.73013,2546.0,2545.4,0.44138226]
[1730474707767,4.73013,2546.0,2545.5,4.36538123]
[1730474707990,3.92783,2546.0,2545.6,0.07855622]
[1730474708602,0.8009,2546.3,2545.6,0.07855622]
[1730474708782,3.92772,2546.0,2545.5,0.43701123]
[1730474708962,3.92772,2546.0,2545.5,4.36547123]
[1730474709295,3.92772,2546.0,2545.5,0.43701123]
[1730474709585,3.92772,2546.0,2545.5,4.36549123]
[1730474709893,3.92758,2546.1,2545.6,4.69362681]
[1730474710095,3.92777,2546.0,2545.6,0.76528681]
[1730474710689,0.8009,2546.3,2545.6,0.76528681]
[1730474710995,3.92764,2546.1,2545.6,4.69353681]
[1730474711997,7.85534,2546.1,2545.6,4.69353681]
[1730474712298,3.92764,2546.1,2545.6,4.69353681]
[1730474712793,3.92764,2546.1,2545.7,0.43701123]
[1730474713092,9.8238103,2564.1,2545.8,0.07855331]
[1730474713093,0.7539,2546.6,2545.8,0.07855331]
[1730474713299,3.92635,2546.9,2546.0,4.62367834]
[1730474713483,3.92526,2547.6,2546.4,3.92711]
[1730474713484,3.92595,2547.2,2546.4,3.92711]
[1730474713809,3.92595,2547.2,2546.3,4.62367834]
[1730474713810,4.6797,2547.3,2546.8,3.92649]
[1730474713975,3.92559,2547.4,2546.9,3.92627]
[1730474714299,0.7539,2547.6,2546.9,3.92627]
[1730474714502,3.926,2547.2,2546.5,3.92686]
[1730474714678,3.92605,2547.1,2546.6,3.92673]
[1730474715973,3.926,2547.2,2546.7,3.92664]
[1730474716179,3.926,2547.2,2546.7,3.92656]
[1730474716373,3.92599,2547.2,2546.7,3.92656]
[1730474717378,3.92612,2547.1,2546.5,3.92681]
[1730474717579,3.92587,2547.3,2546.8,3.92635]
[1730474718404,3.92587,2547.3,2546.7,3.92653]
[1730474718607,3.92538,2547.6,2547.2,3.92586]
[1730474718806,0.8002,2547.9,2547.5,3.92533]
[1730474719108,0.1233109,2548.0,2547.6,7.85037]
[1730474719308,0.1233109,2548.0,2547.7,3.92506]
[1730474719510,4.0479709,2548.0,2547.6,3.92514]
[1730474719795,4.0479709,2548.0,2547.7,3.92507]
[1730474719796,0.1233109,2548.0,2547.7,3.92507]
[1730474720020,0.1233109,2548.0,2547.8,4.00336197]
[1730474720310,0.1233109,2548.0,2547.9,0.07848717]
[1730474720469,0.1233109,2548.0,2547.9,4.00328744]
[1730474720671,0.1233109,2548.0,2547.9,3.9248]
[1730474721173,0.1233109,2548.0,2547.9,4.00328117]
[1730474721481,0.1233109,2548.0,2547.9,3.9248]
[1730474724000,0.1233109,2548.0,2547.9,6.9248]
[1730474724387,0.1233109,2548.0,2547.8,8.54849834]
[1730474724716,0.1233109,2548.0,2547.8,12.47335834]
[1730474724909,0.1233109,2548.0,2547.9,3.9248]
[1730474725110,0.1233109,2548.0,2547.8,8.54849834]
[1730474725314,0.1233109,2548.0,2547.7,3.92503]
[1730474725678,0.1233109,2548.0,2547.7,3.92502]
[1730474726982,0.1233109,2548.0,2547.5,4.62367834]
[1730474726983,0.1233109,2548.0,2547.5,8.54897834]
[1730474727187,0.1233109,2548.0,2547.4,3.92548]
[1730474727188,3.92491,2547.9,2547.4,3.92548]
[1730474727909,4.8211509,2548.0,2547.5,3.92535]
[1730474728498,3.92488,2547.9,2547.4,3.92548]
[1730474728749,4.8211509,2548.0,2547.5,3.9254]
[1730474729474,4.8211509,2548.0,2547.2,5.44012761]
[1730474729815,0.1233109,2548.0,2547.5,4.62367834]
[1730474730115,0.1233109,2548.0,2547.7,3.92496]
[1730474730820,0.1233109,2548.0,2547.5,8.54904834]
[1730474731178,0.1233109,2548.0,2547.5,3.92537]
[1730474731382,4.0479709,2548.0,2547.5,7.8507]
[1730474731817,0.1233109,2548.0,2547.6,3.92526]
[1730474732027,0.1233109,2548.0,2547.7,3.92501]
[1730474732179,0.1233109,2548.0,2547.6,3.92525]
[1730474732980,0.1233109,2548.0,2547.9,3.9248]
[1730474733317,0.1233109,2548.0,2547.9,4.00327535]
[1730474733881,0.1233109,2548.0,2547.9,3.9248]
[1730474734294,0.1233109,2548.0,2547.7,3.92509]
[1730474734597,0.1233109,2548.0,2547.8,3.92486]
[1730474734804,0.1233109,2548.0,2547.9,4.00328709]
[1730474735815,0.1233109,2548.0,2547.9,3.9248]
[1730474736710,0.1233109,2548.0,2547.9,7.55327163]
[1730474736931,0.1233109,2548.0,2547.9,7.4748]
[1730474738420,0.1233109,2548.0,2547.9,6.9248]
[1730474738937,0.1233109,2548.0,2547.6,3.92515]
[1730474739227,0.1233109,2548.0,2547.7,3.92505]
[1730474739984,0.1233109,2548.0,2547.8,3.92494]
[1730474740288,4.0480509,2548.0,2547.6,3.92524]
[1730474741089,0.1233109,2548.0,2547.6,7.85041]
[1730474741325,0.1233109,2548.0,2547.7,3.9251]
[1730474741481,0.1233109,2548.0,2547.8,4.00337059]
[1730474742422,0.1233109,2548.0,2547.8,7.92825059]
[1730474742622,0.1233109,2548.0,2547.8,3.92488]
[1730474742826,0.1233109,2548.0,2547.6,3.92513]
[1730474743029,0.1233109,2548.0,2547.3,3.0]
[1730474743326,0.1233109,2548.0,2547.6,3.92518]
[1730474743537,0.1233109,2548.0,2547.6,3.92526]
[1730474743854,0.1233109,2548.0,2547.8,3.92487]
[1730474744352,0.1233109,2548.0,2547.9,3.9248]
[1730474746706,0.1233109,2548.0,2547.9,4.00328073]
[1730474747045,0.1233109,2548.0,2547.9,3.9248]
[1730474747539,0.1233109,2548.0,2547.9,7.4748]
[1730474749033,0.1233109,2548.0,2547.9,11.68626967]
[1730474749230,8.67657,2549.2,2548.6,3.92358]
[1730474749449,4.75367,2549.2,2548.7,3.92353]
[1730474749744,0.8308,2548.7,2548.3,8.53878931]
[1730474749944,3.9238,2548.6,2548.1,3.92441]
[1730474750119,4.7552,2548.2,2547.4,5.02372198]
[1730474750320,4.7552,2548.2,2547.8,7.84981]
[1730474750635,4.75521,2548.2,2547.7,3.92499]
[1730474750957,3.92465,2548.0,2547.4,4.33455267]
[1730474751255,0.8308,2548.0,2547.4,0.40909267]
[1730474751454,4.75621,2547.5,2547.4,0.40909267]
[1730474751617,3.92579,2547.3,2546.8,3.92648]
[1730474751811,3.9258,2547.3,2546.8,3.92648]
[1730474752067,0.8308,2547.0,2546.9,0.4084011]
[1730474752360,4.75698,2547.0,2546.9,0.4084011]
[1730474752561,0.8308,2547.0,2546.1,3.92744]
[1730474752850,0.8308,2546.6,2546.4,0.40842364]
[1730474753255,0.8308,2546.6,2546.2,3.92741]
[1730474753457,0.8308,2546.6,2546.2,4.320151]
[1730474753754,0.8308,2546.6,2546.3,0.40845716]
[1730474755657,0.8308,2546.6,2546.3,4.33571716]
[1730474755953,0.8016,2547.0,2546.4,4.00555594]
[1730474756138,3.92637,2546.9,2546.4,3.92702]
[1730474756456,7.85286,2546.9,2546.4,3.92702]
[1730474756866,3.92637,2546.9,2546.4,3.92702]
[1730474757019,3.92658,2546.8,2546.3,4.33567716]
[1730474757366,3.92637,2546.9,2546.3,0.40845716]
[1730474757531,3.92637,2546.9,2546.4,3.92711]
[1730474758252,3.92637,2546.9,2546.3,0.40845716]
[1730474758459,3.92637,2546.9,2546.4,3.92702]
[1730474759257,3.92652,2546.8,2546.3,0.40845716]
[1730474759524,3.92665,2546.7,2546.3,0.40845716]
[1730474759932,3.92637,2546.9,2546.3,4.33569716]
[1730474760135,3.92637,2546.9,2546.5,3.92695]
[1730474760529,0.8016,2547.0,2546.5,3.92695]
[1730474760730,4.72786,2547.0,2546.5,3.92695]
[1730474761259,0.8016,2547.0,2546.5,4.61462931]
[1730474761460,0.8016,2547.0,2546.7,3.9265]
[1730474761757,0.8016,2547.0,2546.9,3.92634]
[1730474761923,4.74321,2547.4,2546.9,3.92634]
[1730474762125,3.92573,2547.3,2546.8,3.92649]
[1730474762324,4.74321,2547.4,2546.8,3.9264]
[1730474762640,0.8176,2547.4,2547.0,3.92609]
[1730474762967,0.8215,2547.7,2547.2,3.92579]
[1730474763178,4.74669,2547.7,2547.2,3.92579]
[1730474763484,0.8215,2547.7,2547.2,3.92579]
[1730474763774,4.72687,2548.0,2547.4,3.92547]
[1730474763943,4.72687,2548.0,2547.1,8.54063931]
[1730474763944,3.92521,2547.7,2547.1,8.54055931]
[1730474764263,4.75057,2547.4,2546.8,4.61462931]
[1730474764477,3.92588,2547.2,2546.7,4.33555397]
[1730474764630,0.825,2547.5,2546.7,0.40891397]
[1730474764827,4.75149,2546.8,2546.7,0.40891397]
[1730474765062,4.75149,2546.8,2546.3,3.92713]
[1730474765241,4.75149,2546.8,2546.5,0.40882944]
[1730474766028,0.825,2546.8,2546.5,4.4142992]
[1730474766229,0.825,2546.8,2546.5,8.3410592]
[1730474766475,0.825,2546.8,2546.5,4.33566944]
[1730474766671,0.8157,2547.1,2546.6,4.00524971]
[1730474766828,0.8157,2547.1,2546.7,0.44140792]
[1730474767029,0.8157,2547.4,2547.0,3.9261]
[1730474767231,0.8157,2547.4,2546.8,3.92641]
[1730474767466,3.92616,2547.1,2546.5,0.40882944]
[1730474767667,3.92626,2547.0,2546.5,0.40882944]
[1730474767975,0.8157,2546.8,2546.5,0.40882944]
[1730474769182,4.74228,2546.8,2546.5,0.40882944]
[1730474769470,3.9268,2546.6,2546.5,0.40882944]
[1730474769669,3.92728,2546.3,2545.8,3.92794]
[1730474769886,3.92728,2546.3,2545.9,0.40883614]
[1730474770376,3.92706,2546.5,2546.0,7.85532]
[1730474770536,7.85414,2546.5,2546.0,3.92762]
[1730474770730,3.92706,2546.5,2546.0,3.92762]
[1730474771350,0.7864,2546.6,2546.2,3.92735]
[1730474771629,3.92675,2546.7,2546.3,4.00576916]
[1730474771830,3.92655,2546.8,2546.3,4.00576916]
[1730474772067,4.67749,2546.9,2546.3,3.92723]
[1730474772368,3.92682,2546.6,2546.3,0.392723]
[1730474772572,3.92666,2546.7,2546.3,0.392723]
[1730474772948,3.92666,2546.7,2546.3,4.319973]
[1730474773277,3.92666,2546.7,2546.3,0.392723]
[1730474773461,4.67757,2546.9,2546.3,0.392723]
[1730474773666,3.92656,2546.8,2546.3,4.319973]
[1730474774647,3.92689,2546.6,2546.3,0.392723]
[1730474774975,3.9272,2546.4,2546.0,3.9277]
[1730474775271,3.92731,2546.3,2545.9,4.33660614]
[1730474775776,3.92744,2546.2,2545.9,0.40883614]
[1730474776078,3.92728,2546.3,2545.9,0.40883614]
[1730474776382,3.92688,2546.6,2546.1,3.92744]
[1730474776537,0.7519,2546.7,2546.3,3.92718]
[1730474777074,0.7519,2546.7,2546.4,3.92711]
[1730474777276,0.7519,2547.3,2546.8,3.92642]
[1730474777430,4.67764,2547.3,2546.9,0.392642]
[1730474777657,4.67763,2547.3,2546.9,0.392642]
[1730474778050,3.92634,2546.9,2546.4,3.927]
[1730474778235,3.92634,2546.9,2546.5,3.92693]
[1730474779184,3.9262,2547.0,2546.5,3.92695]
[1730474779475,0.7519,2547.3,2546.7,3.92655]
[1730474779646,3.92545,2547.5,2547.0,3.9261]
[1730474780153,3.92545,2547.5,2547.0,7.8522]
[1730474780352,3.92545,2547.5,2547.0,3.9261]
[1730474781072,3.92558,2547.4,2547.0,3.9261]
[1730474781282,3.92558,2547.4,2546.6,0.55]
[1730474781283,3.92572,2547.3,2546.4,3.927]
[1730474781519,0.791,2546.8,2546.3,0.40791941]
[1730474781787,3.92688,2546.6,2546.3,0.40791941]
[1730474781977,3.92704,2546.5,2546.3,0.40791941]
[1730474782146,3.92704,2546.5,2546.1,3.92756]
[1730474782350,7.85382,2546.6,2546.2,0.40799247]
[1730474782551,3.92698,2546.5,2546.2,0.40799247]
[1730474783492,3.92726,2546.3,2546.2,0.40799247]
[1730474783692,3.92711,2546.4,2546.0,3.92769]
[1730474783850,7.85432,2546.4,2546.1,0.40820436]
[1730474784058,3.92726,2546.3,2546.1,0.40820436]
[1730474784298,3.92742,2546.2,2546.1,0.40820436]
[1730474785504,3.92712,2546.4,2546.1,0.40820436]
[1730474785700,7.85436,2546.4,2546.1,0.40820436]
[1730474785866,3.92712,2546.4,2546.1,0.40820436]
[1730474786479,3.92704,2546.5,2546.1,0.8418098]
[1730474786687,4.75719,2546.6,2546.1,0.8418098]
[1730474786884,3.92712,2546.4,2546.1,0.8418098]